[Event "*** Titled Tuesday Blitz"]
[Site "Chess.com"]
[Date "2020.05.19"]
[Round "1"]
[White "SerGo055"]
[Black "TheBigBadChessDad"]
[Result "1-0"]
[WhiteElo "2562"]
[BlackElo "2264"]
[TimeControl "180+1"]
[EndTime "12:06:19 PDT"]
[Termination "SerGo055 won by resignation"]

1. d4 {[%clk 0:03:00.9]} 1... d5 {[%clk 0:02:59]} 2. Nf3 {[%clk 0:03:00.4]} 2...
Nf6 {[%clk 0:02:58.2]} 3. c4 {[%clk 0:02:59.7]} 3... e6 {[%clk 0:02:58.1]} 4.
Nc3 {[%clk 0:02:57.8]} 4... Be7 {[%clk 0:02:57.7]} 5. Bg5 {[%clk 0:02:56.9]}
5... Nbd7 {[%clk 0:02:52.6]} 6. e3 {[%clk 0:02:56.6]} 6... h6 {[%clk 0:02:50.1]}
7. Bh4 {[%clk 0:02:55.6]} 7... O-O {[%clk 0:02:50]} 8. Qc2 {[%clk 0:02:54.4]}
8... c5 {[%clk 0:02:48.3]} 9. Rd1 {[%clk 0:02:52.1]} 9... cxd4 {[%clk
0:02:45.9]} 10. Nxd4 {[%clk 0:02:51.4]} 10... Qa5 {[%clk 0:02:25.3]} 11. Nb3
{[%clk 0:02:39.3]} 11... Qc7 {[%clk 0:01:59.6]} 12. Bg3 {[%clk 0:02:33.2]} 12...
Qd8 {[%clk 0:01:39.2]} 13. cxd5 {[%clk 0:02:32.2]} 13... Nxd5 {[%clk 0:01:36.1]}
14. Nxd5 {[%clk 0:02:27.7]} 14... exd5 {[%clk 0:01:37]} 15. Rxd5 {[%clk
0:02:20]} 15... Bb4+ {[%clk 0:01:36.1]} 16. Nd2 {[%clk 0:02:19.4]} 16... Qe7
{[%clk 0:01:30.5]} 17. Be2 {[%clk 0:02:04.1]} 17... Nf6 {[%clk 0:01:25.2]} 18.
Rd4 {[%clk 0:01:58.2]} 18... Ne4 {[%clk 0:01:17.6]} 19. Qxe4 {[%clk 0:01:40.7]}
19... Bxd2+ {[%clk 0:01:03.8]} 20. Kxd2 {[%clk 0:01:33.2]} 20... Qc5 {[%clk
0:01:02.6]} 21. Bd3 {[%clk 0:01:26.8]} 21... Qa5+ {[%clk 0:00:49.4]} 22. Ke2
{[%clk 0:01:24.5]} 22... f5 {[%clk 0:00:48.5]} 23. Qd5+ {[%clk 0:01:22.8]} 23...
Qxd5 {[%clk 0:00:46.4]} 24. Rxd5 {[%clk 0:01:23.7]} 24... Be6 {[%clk 0:00:46.7]}
25. Ra5 {[%clk 0:01:06.4]} 25... b6 {[%clk 0:00:47]} 26. Ra4 {[%clk 0:00:59.3]}
26... Rfc8 {[%clk 0:00:35.9]} 27. Be5 {[%clk 0:00:54.4]} 27... b5 {[%clk
0:00:33]} 28. Ra6 {[%clk 0:00:48.5]} 28... Bc4 {[%clk 0:00:29.5]} 29. Bxc4+
{[%clk 0:00:48.2]} 29... Rxc4 {[%clk 0:00:28.7]} 30. Rd1 {[%clk 0:00:46.2]}
30... Rc5 {[%clk 0:00:24.9]} 31. f4 {[%clk 0:00:43.4]} 1-0

[Event "*** Titled Tuesday Blitz"]
[Site "Chess.com"]
[Date "2020.05.19"]
[Round "1"]
[White "Vegan4future"]
[Black "praveenb2002"]
[Result "0-1"]
[WhiteElo "2387"]
[BlackElo "2728"]
[TimeControl "180+1"]
[EndTime "12:06:20 PDT"]
[Termination "praveenb2002 won by checkmate"]

1. e4 {[%clk 0:02:51.5]} 1... e5 {[%clk 0:02:59.6]} 2. Nf3 {[%clk 0:02:42.7]}
2... Nc6 {[%clk 0:03:00]} 3. Bb5 {[%clk 0:02:39]} 3... a6 {[%clk 0:03:00.1]} 4.
Ba4 {[%clk 0:02:34.7]} 4... Nf6 {[%clk 0:03:00.4]} 5. O-O {[%clk 0:02:34.3]}
5... b5 {[%clk 0:02:59.9]} 6. Bb3 {[%clk 0:02:34]} 6... Bc5 {[%clk 0:02:59.3]}
7. d3 {[%clk 0:02:34.1]} 7... O-O {[%clk 0:02:48.7]} 8. a4 {[%clk 0:02:32.9]}
8... Bb7 {[%clk 0:02:47.1]} 9. a5 {[%clk 0:02:29.3]} 9... h6 {[%clk 0:02:36.5]}
10. Nc3 {[%clk 0:02:26.5]} 10... d6 {[%clk 0:02:36.6]} 11. Nd5 {[%clk 0:02:26]}
11... Nxd5 {[%clk 0:02:27.2]} 12. Bxd5 {[%clk 0:02:26.9]} 12... Nxa5 {[%clk
0:02:19.7]} 13. Rxa5 {[%clk 0:02:23.2]} 13... c6 {[%clk 0:02:19.7]} 14. Bxf7+
{[%clk 0:02:20.7]} 14... Rxf7 {[%clk 0:02:18.3]} 15. Ra1 {[%clk 0:02:19.8]}
15... a5 {[%clk 0:02:03.8]} 16. Be3 {[%clk 0:02:19.2]} 16... Qb6 {[%clk
0:01:57.5]} 17. Qd2 {[%clk 0:02:15.6]} 17... a4 {[%clk 0:01:55.6]} 18. c3 {[%clk
0:02:12.9]} 18... Bxe3 {[%clk 0:01:48.7]} 19. fxe3 {[%clk 0:02:12.4]} 19... Raf8
{[%clk 0:01:47.9]} 20. Nh4 {[%clk 0:02:09.1]} 20... Rxf1+ {[%clk 0:01:46.8]} 21.
Rxf1 {[%clk 0:02:10]} 21... Rxf1+ {[%clk 0:01:46.6]} 22. Kxf1 {[%clk 0:02:10.9]}
22... c5 {[%clk 0:01:46.8]} 23. Nf5 {[%clk 0:02:04.6]} 23... b4 {[%clk
0:01:46.4]} 24. cxb4 {[%clk 0:01:58.7]} 24... cxb4 {[%clk 0:01:46.7]} 25. Qc1
{[%clk 0:01:50.7]} 25... Kh7 {[%clk 0:01:34.4]} 26. Kf2 {[%clk 0:01:42.5]} 26...
g6 {[%clk 0:01:28]} 27. Qc4 {[%clk 0:01:19]} 27... d5 {[%clk 0:01:27.7]} 28.
exd5 {[%clk 0:01:09.8]} 28... gxf5 {[%clk 0:01:27.1]} 29. d6 {[%clk 0:01:06]}
29... Kg7 {[%clk 0:01:21.6]} 30. Qe6 {[%clk 0:00:59]} 30... Qd8 {[%clk
0:01:16.6]} 31. Qxe5+ {[%clk 0:00:57.6]} 31... Qf6 {[%clk 0:01:14.9]} 32. Qb5
{[%clk 0:00:52.4]} 32... Qxb2+ {[%clk 0:01:14.4]} 33. Ke1 {[%clk 0:00:47]} 33...
Qc1+ {[%clk 0:01:09.5]} 34. Ke2 {[%clk 0:00:46.1]} 34... Qc6 {[%clk 0:01:04.5]}
35. Qxb4 {[%clk 0:00:42.7]} 35... Qxg2+ {[%clk 0:01:04]} 36. Ke1 {[%clk
0:00:43.1]} 36... Bf3 {[%clk 0:00:59.3]} 37. Qc3+ {[%clk 0:00:27.8]} 37... Kg6
{[%clk 0:00:59.2]} 38. Qd2 {[%clk 0:00:18.6]} 38... Qg1# {[%clk 0:00:57.3]} 0-1

[Event "*** Titled Tuesday Blitz"]
[Site "Chess.com"]
[Date "2020.05.19"]
[Round "1"]
[White "swayamsm"]
[Black "MusicCityMaster"]
[Result "1-0"]
[WhiteElo "2661"]
[BlackElo "2351"]
[TimeControl "180+1"]
[EndTime "12:06:20 PDT"]
[Termination "swayamsm won by resignation"]

1. d4 {[%clk 0:03:00.9]} 1... d5 {[%clk 0:02:56.7]} 2. Nf3 {[%clk 0:03:01.8]}
2... Nf6 {[%clk 0:02:51.2]} 3. Bf4 {[%clk 0:03:02.2]} 3... e6 {[%clk 0:02:50.5]}
4. e3 {[%clk 0:03:02.5]} 4... Bd6 {[%clk 0:02:50.8]} 5. Bg3 {[%clk 0:03:02.2]}
5... O-O {[%clk 0:02:49.9]} 6. Nbd2 {[%clk 0:03:02.3]} 6... c5 {[%clk
0:02:49.7]} 7. c3 {[%clk 0:03:01.4]} 7... Qe7 {[%clk 0:02:49.8]} 8. Bd3 {[%clk
0:03:00.8]} 8... Nbd7 {[%clk 0:02:49.3]} 9. Ne5 {[%clk 0:03:01.3]} 9... Rd8
{[%clk 0:02:42.3]} 10. Ndf3 {[%clk 0:02:59.4]} 10... Nf8 {[%clk 0:02:37.2]} 11.
Ng5 {[%clk 0:02:59.2]} 11... Bxe5 {[%clk 0:02:36.2]} 12. dxe5 {[%clk 0:02:58.1]}
12... N6d7 {[%clk 0:02:33.5]} 13. Qh5 {[%clk 0:02:58.2]} 13... h6 {[%clk
0:02:27.2]} 14. Nf3 {[%clk 0:02:48.7]} 14... c4 {[%clk 0:02:25.9]} 15. Bc2
{[%clk 0:02:46.9]} 15... b5 {[%clk 0:01:48.1]} 16. Bh4 {[%clk 0:02:46]} 16... f6
{[%clk 0:01:48.4]} 17. exf6 {[%clk 0:02:35.9]} 17... Nxf6 {[%clk 0:01:48]} 18.
Qe5 {[%clk 0:02:34.9]} 18... N8d7 {[%clk 0:01:42.2]} 19. Qg3 {[%clk 0:02:35.3]}
19... e5 {[%clk 0:01:33]} 20. O-O {[%clk 0:02:30.7]} 20... e4 {[%clk 0:01:30.8]}
21. Nd4 {[%clk 0:02:30.2]} 21... Ne5 {[%clk 0:01:17]} 22. f4 {[%clk 0:02:30.1]}
22... Nd3 {[%clk 0:01:15.8]} 23. Nc6 {[%clk 0:02:29.4]} 23... Qd6 {[%clk
0:01:13.9]} 24. Nxd8 {[%clk 0:02:28.8]} 24... Qxd8 {[%clk 0:01:14.8]} 25. f5
{[%clk 0:02:26.7]} 25... Qf8 {[%clk 0:01:06.9]} 26. b3 {[%clk 0:02:23.3]} 26...
Bd7 {[%clk 0:01:05]} 27. bxc4 {[%clk 0:02:23.5]} 27... dxc4 {[%clk 0:01:02.4]}
28. a4 {[%clk 0:02:22.8]} 28... a6 {[%clk 0:00:49.9]} 29. axb5 {[%clk
0:02:22.5]} 29... Bxb5 {[%clk 0:00:50.7]} 30. Rfb1 {[%clk 0:02:18]} 30... Re8
{[%clk 0:00:47.8]} 31. Ba4 {[%clk 0:02:15.5]} 31... Re5 {[%clk 0:00:38.5]} 32.
Bxb5 {[%clk 0:02:12.9]} 32... axb5 {[%clk 0:00:39.4]} 33. Rf1 {[%clk 0:02:06.4]}
33... Qf7 {[%clk 0:00:26.4]} 34. Ra8+ {[%clk 0:02:03.4]} 34... Kh7 {[%clk
0:00:26.6]} 35. Rd8 {[%clk 0:02:03.2]} 35... Nd5 {[%clk 0:00:23.1]} 36. f6
{[%clk 0:01:52.6]} 36... g5 {[%clk 0:00:18.4]} 37. Qg4 {[%clk 0:01:48.7]} 37...
Nc5 {[%clk 0:00:17.8]} 38. Qc8 {[%clk 0:01:47]} 38... gxh4 {[%clk 0:00:15]} 39.
Rh8+ {[%clk 0:01:45.8]} 39... Kg6 {[%clk 0:00:15.4]} 40. Qxc5 {[%clk 0:01:37.8]}
40... Rg5 {[%clk 0:00:13.9]} 41. Qd4 {[%clk 0:01:32.7]} 41... Qe6 {[%clk
0:00:13.3]} 42. f7 {[%clk 0:01:30.1]} 42... h3 {[%clk 0:00:13]} 43. f8=N+ {[%clk
0:01:23.3]} 43... Kh5 {[%clk 0:00:12.5]} 44. Nxe6 {[%clk 0:01:23]} 44... Rxg2+
{[%clk 0:00:13.1]} 45. Kh1 {[%clk 0:01:23.3]} 1-0

[Event "*** Titled Tuesday Blitz"]
[Site "Chess.com"]
[Date "2020.05.19"]
[Round "1"]
[White "Thijs"]
[Black "Shield12"]
[Result "0-1"]
[WhiteElo "2418"]
[BlackElo "2814"]
[TimeControl "180+1"]
[EndTime "12:06:21 PDT"]
[Termination "Shield12 won by resignation"]

1. e4 {[%clk 0:02:58.7]} 1... c5 {[%clk 0:02:59.8]} 2. Nf3 {[%clk 0:02:58.7]}
2... Nc6 {[%clk 0:03:00.1]} 3. d4 {[%clk 0:02:59.1]} 3... cxd4 {[%clk 0:03:01]}
4. Nxd4 {[%clk 0:03:00]} 4... Nf6 {[%clk 0:03:01.6]} 5. Nc3 {[%clk 0:03:00.3]}
5... d6 {[%clk 0:03:02.2]} 6. Bg5 {[%clk 0:03:00]} 6... e6 {[%clk 0:03:02.6]} 7.
Qd2 {[%clk 0:02:59.7]} 7... a6 {[%clk 0:03:02.7]} 8. O-O-O {[%clk 0:02:59.7]}
8... Bd7 {[%clk 0:03:03.2]} 9. f4 {[%clk 0:02:59.8]} 9... b5 {[%clk 0:03:03.4]}
10. a3 {[%clk 0:02:48.5]} 10... Be7 {[%clk 0:03:01.3]} 11. Be2 {[%clk
0:02:47.1]} 11... Rc8 {[%clk 0:02:56]} 12. Nxc6 {[%clk 0:02:45.2]} 12... Bxc6
{[%clk 0:02:54.9]} 13. Bf3 {[%clk 0:02:44.6]} 13... h6 {[%clk 0:02:34.3]} 14.
Bxf6 {[%clk 0:02:43]} 14... Bxf6 {[%clk 0:02:32.7]} 15. Qxd6 {[%clk 0:02:42.4]}
15... Qxd6 {[%clk 0:02:31.9]} 16. Rxd6 {[%clk 0:02:43.3]} 16... Be7 {[%clk
0:02:28.6]} 17. Rd3 {[%clk 0:02:36.5]} 17... g5 {[%clk 0:02:28.3]} 18. g3 {[%clk
0:02:27.1]} 18... h5 {[%clk 0:02:26.5]} 19. e5 {[%clk 0:02:21.4]} 19... h4
{[%clk 0:02:24.8]} 20. Bxc6+ {[%clk 0:01:54.4]} 20... Rxc6 {[%clk 0:02:25.7]}
21. Rhd1 {[%clk 0:01:52.8]} 21... gxf4 {[%clk 0:02:10.4]} 22. gxf4 {[%clk
0:01:51.7]} 22... Rg8 {[%clk 0:02:10.1]} 23. Ne4 {[%clk 0:01:47.9]} 23... Rg2
{[%clk 0:02:05.7]} 24. c3 {[%clk 0:01:38.7]} 24... Rc4 {[%clk 0:02:01.5]} 25.
Nf6+ {[%clk 0:01:35.3]} 25... Bxf6 {[%clk 0:01:47.4]} 26. exf6 {[%clk
0:01:36.1]} 26... Rc8 {[%clk 0:01:48.3]} 27. f5 {[%clk 0:01:25.4]} 27... exf5
{[%clk 0:01:39.7]} 28. Rf1 {[%clk 0:01:23.4]} 28... Rxh2 {[%clk 0:01:24.7]} 29.
Rxf5 {[%clk 0:01:23]} 29... Kf8 {[%clk 0:01:20.9]} 30. Rd7 {[%clk 0:01:13.8]}
30... Re8 {[%clk 0:01:14.5]} 31. Rh5 {[%clk 0:01:10.8]} 31... Re1+ {[%clk
0:01:09.6]} 32. Rd1 {[%clk 0:01:10]} 32... Rxd1+ {[%clk 0:01:09.5]} 33. Kxd1
{[%clk 0:01:10.9]} 33... Ke8 {[%clk 0:01:10.1]} 34. Kc1 {[%clk 0:01:08.9]} 34...
h3 {[%clk 0:01:09.3]} 35. Re5+ {[%clk 0:01:07.7]} 35... Kd8 {[%clk 0:00:46.9]}
36. Re7 {[%clk 0:01:05.5]} 36... Rf2 {[%clk 0:00:46]} 37. Rxf7 {[%clk
0:01:05.3]} 37... h2 {[%clk 0:00:46.3]} 0-1

[Event "*** Titled Tuesday Blitz"]
[Site "Chess.com"]
[Date "2020.05.19"]
[Round "1"]
[White "Funo09"]
[Black "stasiek18"]
[Result "1-0"]
[WhiteElo "2714"]
[BlackElo "2376"]
[TimeControl "180+1"]
[EndTime "12:06:22 PDT"]
[Termination "Funo09 won on time"]

1. e4 {[%clk 0:03:00.9]} 1... e6 {[%clk 0:02:59.9]} 2. d4 {[%clk 0:03:00.3]}
2... d5 {[%clk 0:03:00.1]} 3. Nc3 {[%clk 0:03:00.6]} 3... Nf6 {[%clk 0:02:59.5]}
4. Bg5 {[%clk 0:03:00]} 4... Be7 {[%clk 0:02:59]} 5. e5 {[%clk 0:03:00]} 5...
Nfd7 {[%clk 0:02:59.2]} 6. h4 {[%clk 0:03:00.7]} 6... h6 {[%clk 0:02:58.9]} 7.
Bxe7 {[%clk 0:03:00.5]} 7... Qxe7 {[%clk 0:02:59.8]} 8. Qg4 {[%clk 0:02:57.6]}
8... O-O {[%clk 0:02:55.2]} 9. Nf3 {[%clk 0:02:57.7]} 9... c5 {[%clk 0:02:54.5]}
10. O-O-O {[%clk 0:02:46.6]} 10... Nc6 {[%clk 0:02:54.3]} 11. dxc5 {[%clk
0:02:33.6]} 11... Qxc5 {[%clk 0:02:39.1]} 12. Qf4 {[%clk 0:02:25.2]} 12... f6
{[%clk 0:01:54.2]} 13. exf6 {[%clk 0:02:22.9]} 13... Rxf6 {[%clk 0:01:53.8]} 14.
Qd2 {[%clk 0:02:21.9]} 14... Rb8 {[%clk 0:01:42.7]} 15. Bb5 {[%clk 0:02:20.9]}
15... a6 {[%clk 0:01:40]} 16. Ba4 {[%clk 0:02:13.4]} 16... b5 {[%clk 0:01:38.5]}
17. Bb3 {[%clk 0:02:13.7]} 17... Nb6 {[%clk 0:01:34.8]} 18. Rhe1 {[%clk
0:02:09.2]} 18... Nc4 {[%clk 0:01:33]} 19. Qe2 {[%clk 0:02:09.2]} 19... a5
{[%clk 0:01:11.7]} 20. a4 {[%clk 0:02:00.9]} 20... bxa4 {[%clk 0:00:59.9]} 21.
Nxa4 {[%clk 0:02:01.8]} 21... Qb4 {[%clk 0:00:56.5]} 22. Nd4 {[%clk 0:01:51.2]}
22... Nxd4 {[%clk 0:00:54.1]} 23. Rxd4 {[%clk 0:01:52.1]} 23... Bd7 {[%clk
0:00:52.6]} 24. Nc3 {[%clk 0:01:44.7]} 24... Bc6 {[%clk 0:00:19.6]} 25. f3
{[%clk 0:01:38.7]} 25... a4 {[%clk 0:00:19.7]} 26. Bxc4 {[%clk 0:01:39.1]} 26...
Qxb2+ {[%clk 0:00:19.4]} 27. Kd2 {[%clk 0:01:39.3]} 27... dxc4 {[%clk
0:00:18.2]} 28. Rb1 {[%clk 0:01:39.7]} 28... Qxb1 {[%clk 0:00:17.5]} 29. Nxb1
{[%clk 0:01:40.6]} 29... Rxb1 {[%clk 0:00:17.5]} 30. Rxc4 {[%clk 0:01:39]} 30...
Bd5 {[%clk 0:00:13.9]} 31. Rxa4 {[%clk 0:01:37.7]} 31... Rf8 {[%clk 0:00:11.6]}
32. Rd4 {[%clk 0:01:35]} 32... Rc8 {[%clk 0:00:09.5]} 33. Qa6 {[%clk 0:01:29]}
33... Ra8 {[%clk 0:00:06.6]} 34. Qd6 {[%clk 0:01:25.2]} 34... Raa1 {[%clk
0:00:05.5]} 35. Ke3 {[%clk 0:01:21.5]} 35... Re1+ {[%clk 0:00:04.2]} 36. Kf2
{[%clk 0:01:20.1]} 36... Rf1+ {[%clk 0:00:03.1]} 37. Kg3 {[%clk 0:01:20.5]}
37... Rac1 {[%clk 0:00:02.4]} 38. c4 {[%clk 0:01:17.9]} 38... Bxc4 {[%clk
0:00:01.2]} 39. Rxc4 {[%clk 0:01:17.9]} 1-0

[Event "*** Titled Tuesday Blitz"]
[Site "Chess.com"]
[Date "2020.05.19"]
[Round "1"]
[White "Zmof"]
[Black "GoltsevDmitry2000"]
[Result "0-1"]
[WhiteElo "2260"]
[BlackElo "2559"]
[TimeControl "180+1"]
[EndTime "12:06:25 PDT"]
[Termination "GoltsevDmitry2000 won by resignation"]

1. e4 {[%clk 0:03:00.9]} 1... c5 {[%clk 0:02:54.4]} 2. Nf3 {[%clk 0:03:00.4]}
2... e6 {[%clk 0:02:55]} 3. c3 {[%clk 0:02:59.9]} 3... Nc6 {[%clk 0:02:55.1]} 4.
d4 {[%clk 0:02:58.8]} 4... cxd4 {[%clk 0:02:56]} 5. cxd4 {[%clk 0:02:58.9]} 5...
d5 {[%clk 0:02:56.3]} 6. e5 {[%clk 0:02:59.3]} 6... Nge7 {[%clk 0:02:56.5]} 7.
Nc3 {[%clk 0:02:56]} 7... Nf5 {[%clk 0:02:56.7]} 8. Bd3 {[%clk 0:02:55.5]} 8...
Nfxd4 {[%clk 0:02:56.3]} 9. Nxd4 {[%clk 0:02:52.4]} 9... Nxd4 {[%clk 0:02:57.2]}
10. O-O {[%clk 0:02:52.7]} 10... Nc6 {[%clk 0:02:57]} 11. f4 {[%clk 0:02:51.5]}
11... Bc5+ {[%clk 0:02:55.2]} 12. Kh1 {[%clk 0:02:51.3]} 12... a6 {[%clk
0:02:52.5]} 13. a3 {[%clk 0:02:51.1]} 13... g6 {[%clk 0:02:48.1]} 14. b4 {[%clk
0:02:50.6]} 14... Be7 {[%clk 0:02:46.1]} 15. Bb2 {[%clk 0:02:49.5]} 15... h5
{[%clk 0:02:45]} 16. Ne2 {[%clk 0:02:47.6]} 16... Bd7 {[%clk 0:02:44.2]} 17. Rc1
{[%clk 0:02:47.1]} 17... Rc8 {[%clk 0:02:43.8]} 18. Qd2 {[%clk 0:02:47]} 18...
Na7 {[%clk 0:02:42.2]} 19. Nd4 {[%clk 0:02:46]} 19... Nc6 {[%clk 0:02:38.4]} 20.
Nb3 {[%clk 0:02:44.1]} 20... Qb6 {[%clk 0:02:33.2]} 21. Nc5 {[%clk 0:02:33.8]}
21... Na7 {[%clk 0:02:30.6]} 22. Bd4 {[%clk 0:02:31]} 22... Nc6 {[%clk
0:02:11.5]} 23. Bg1 {[%clk 0:02:28.6]} 23... Qc7 {[%clk 0:02:03.7]} 24. a4
{[%clk 0:02:22.4]} 24... O-O {[%clk 0:01:57.3]} 25. g4 {[%clk 0:02:07.8]} 25...
hxg4 {[%clk 0:01:56]} 26. Qg2 {[%clk 0:02:07.8]} 26... d4 {[%clk 0:01:50.7]} 27.
Qxg4 {[%clk 0:02:06.8]} 27... Kg7 {[%clk 0:01:51]} 28. Ne4 {[%clk 0:02:01.5]}
28... Rh8 {[%clk 0:01:46.3]} 29. Bxd4 {[%clk 0:01:59.9]} 29... Qd8 {[%clk
0:01:42.5]} 30. Ba1 {[%clk 0:01:55.5]} 30... Nxb4 {[%clk 0:01:42]} 31. Bb1
{[%clk 0:01:54.6]} 31... Rxc1 {[%clk 0:01:40.4]} 32. Rxc1 {[%clk 0:01:54.1]}
32... Bc6 {[%clk 0:01:40.8]} 33. f5 {[%clk 0:01:17.7]} 33... exf5 {[%clk
0:01:35.8]} 34. e6+ {[%clk 0:01:16.5]} 34... f6 {[%clk 0:01:35]} 35. Qg2 {[%clk
0:00:29.7]} 35... fxe4 {[%clk 0:01:25.4]} 36. Rg1 {[%clk 0:00:27.5]} 36... e3
{[%clk 0:01:19.6]} 37. Be4 {[%clk 0:00:26.7]} 37... Bxe4 {[%clk 0:01:19.3]} 38.
Qxe4 {[%clk 0:00:26.5]} 38... Qd5 {[%clk 0:01:19]} 39. Rxg6+ {[%clk 0:00:26.6]}
39... Kf8 {[%clk 0:01:18.3]} 0-1

[Event "*** Titled Tuesday Blitz"]
[Site "Chess.com"]
[Date "2020.05.19"]
[Round "1"]
[White "korbul"]
[Black "Bigfish1995"]
[Result "0-1"]
[WhiteElo "2458"]
[BlackElo "2983"]
[TimeControl "180+1"]
[EndTime "12:06:26 PDT"]
[Termination "Bigfish1995 won by resignation"]

1. d4 {[%clk 0:02:58.3]} 1... Nf6 {[%clk 0:02:59.7]} 2. c4 {[%clk 0:02:57.8]}
2... e6 {[%clk 0:03:00.2]} 3. Nf3 {[%clk 0:02:57.1]} 3... b6 {[%clk 0:03:00.6]}
4. g3 {[%clk 0:02:57.1]} 4... Ba6 {[%clk 0:03:00.9]} 5. Nbd2 {[%clk 0:02:56.3]}
5... Bb7 {[%clk 0:03:00.1]} 6. Bg2 {[%clk 0:02:55.8]} 6... Be7 {[%clk
0:03:00.7]} 7. O-O {[%clk 0:02:55.7]} 7... O-O {[%clk 0:03:01.3]} 8. Qc2 {[%clk
0:02:55.4]} 8... d5 {[%clk 0:02:59]} 9. cxd5 {[%clk 0:02:54.4]} 9... exd5 {[%clk
0:02:55.9]} 10. b3 {[%clk 0:02:54.3]} 10... a5 {[%clk 0:02:48.4]} 11. a3 {[%clk
0:02:53.5]} 11... c6 {[%clk 0:02:44.6]} 12. Bb2 {[%clk 0:02:53.1]} 12... Na6
{[%clk 0:02:44.7]} 13. Ne5 {[%clk 0:02:52.5]} 13... Rc8 {[%clk 0:02:41.9]} 14.
Rac1 {[%clk 0:02:51.3]} 14... Bd6 {[%clk 0:02:40.9]} 15. Qb1 {[%clk 0:02:50]}
15... Qe7 {[%clk 0:02:40]} 16. Qa1 {[%clk 0:02:47.5]} 16... Rc7 {[%clk
0:02:39.7]} 17. Rfe1 {[%clk 0:02:46.2]} 17... c5 {[%clk 0:02:38.5]} 18. dxc5
{[%clk 0:02:36.9]} 18... Nxc5 {[%clk 0:02:38.4]} 19. Nd3 {[%clk 0:02:33.6]}
19... Ncd7 {[%clk 0:02:38]} 20. Rxc7 {[%clk 0:02:32]} 20... Bxc7 {[%clk
0:02:38.9]} 21. b4 {[%clk 0:02:17.4]} 21... Re8 {[%clk 0:02:38.2]} 22. bxa5
{[%clk 0:02:15]} 22... bxa5 {[%clk 0:02:38.5]} 23. a4 {[%clk 0:02:14.8]} 23...
Bd6 {[%clk 0:02:37.4]} 24. Nb3 {[%clk 0:02:03.5]} 24... Ba6 {[%clk 0:02:37.8]}
25. Qd1 {[%clk 0:01:38.3]} 25... Nb6 {[%clk 0:02:33.7]} 26. Nxa5 {[%clk
0:01:34.6]} 26... Nc4 {[%clk 0:02:30.2]} 27. Nc6 {[%clk 0:01:25]} 27... Qb7
{[%clk 0:02:22.6]} 28. Bxf6 {[%clk 0:01:24]} 28... Qxc6 {[%clk 0:02:23.1]} 29.
Bd4 {[%clk 0:01:23.5]} 29... Na3 {[%clk 0:02:08.6]} 30. Qd2 {[%clk 0:01:09.7]}
30... Qc2 {[%clk 0:02:02.8]} 31. Qg5 {[%clk 0:01:02.7]} 31... Bf8 {[%clk
0:01:58.7]} 32. Nf4 {[%clk 0:00:59.9]} 32... Qd2 {[%clk 0:01:54.6]} 33. Rf1
{[%clk 0:00:23.2]} 33... Qxd4 {[%clk 0:01:52.4]} 34. Bxd5 {[%clk 0:00:21]} 34...
Re5 {[%clk 0:01:49.7]} 35. Qd8 {[%clk 0:00:19.5]} 35... Qa7 {[%clk 0:01:42.6]}
36. Bf3 {[%clk 0:00:16]} 36... Nc4 {[%clk 0:01:37.1]} 37. Nd5 {[%clk 0:00:15.6]}
37... Nd6 {[%clk 0:01:31]} 38. Ne3 {[%clk 0:00:09.1]} 38... Re8 {[%clk
0:01:29.6]} 39. Qg5 {[%clk 0:00:08.3]} 39... Bb7 {[%clk 0:01:25]} 40. Ng4 {[%clk
0:00:08.2]} 40... Kh8 {[%clk 0:01:23.1]} 41. Bxb7 {[%clk 0:00:07]} 41... Qxb7
{[%clk 0:01:24]} 42. Ne5 {[%clk 0:00:06.8]} 42... f6 {[%clk 0:01:22.5]} 0-1

[Event "*** Titled Tuesday Blitz"]
[Site "Chess.com"]
[Date "2020.05.19"]
[Round "1"]
[White "Chessmasterzt"]
[Black "garicradomir"]
[Result "1-0"]
[WhiteElo "2575"]
[BlackElo "2281"]
[TimeControl "180+1"]
[EndTime "12:06:26 PDT"]
[Termination "Chessmasterzt won by checkmate"]

1. d4 {[%clk 0:03:00.2]} 1... Nf6 {[%clk 0:02:59.3]} 2. c4 {[%clk 0:03:00.7]}
2... Nc6 {[%clk 0:02:58.5]} 3. Nf3 {[%clk 0:03:00.2]} 3... e6 {[%clk 0:02:58.4]}
4. g3 {[%clk 0:02:59]} 4... g6 {[%clk 0:02:56.2]} 5. Bg2 {[%clk 0:02:58.2]} 5...
Bg7 {[%clk 0:02:56.6]} 6. O-O {[%clk 0:02:58.1]} 6... O-O {[%clk 0:02:57]} 7.
Nc3 {[%clk 0:02:56.6]} 7... d6 {[%clk 0:02:55.7]} 8. b3 {[%clk 0:02:47.9]} 8...
Qe7 {[%clk 0:02:55.5]} 9. Bb2 {[%clk 0:02:33.4]} 9... a5 {[%clk 0:02:54.6]} 10.
Rc1 {[%clk 0:02:27.1]} 10... e5 {[%clk 0:02:53.7]} 11. Re1 {[%clk 0:02:19]}
11... e4 {[%clk 0:02:52.9]} 12. Ng5 {[%clk 0:02:18.1]} 12... Bf5 {[%clk
0:02:50.3]} 13. e3 {[%clk 0:02:09.8]} 13... h6 {[%clk 0:02:47.5]} 14. Nh3 {[%clk
0:02:10.2]} 14... Nb4 {[%clk 0:02:43.2]} 15. Nf4 {[%clk 0:01:46.7]} 15... c6
{[%clk 0:02:42.4]} 16. a3 {[%clk 0:01:45.9]} 16... Na6 {[%clk 0:02:04.3]} 17. f3
{[%clk 0:01:46.1]} 17... exf3 {[%clk 0:01:59.5]} 18. Qxf3 {[%clk 0:01:47]} 18...
Bg4 {[%clk 0:01:45.4]} 19. Qf2 {[%clk 0:01:46]} 19... Rae8 {[%clk 0:01:32.7]}
20. h3 {[%clk 0:01:45.7]} 20... Bc8 {[%clk 0:01:32.4]} 21. Rcd1 {[%clk
0:01:46.1]} 21... Nc7 {[%clk 0:01:31.3]} 22. e4 {[%clk 0:01:44.5]} 22... Ne6
{[%clk 0:01:24.5]} 23. d5 {[%clk 0:01:44.5]} 23... Nxf4 {[%clk 0:01:24.1]} 24.
gxf4 {[%clk 0:01:45.4]} 24... Nh5 {[%clk 0:01:19.2]} 25. dxc6 {[%clk 0:01:26.3]}
25... bxc6 {[%clk 0:01:20.1]} 26. e5 {[%clk 0:01:26.6]} 26... dxe5 {[%clk
0:01:16]} 27. Bxc6 {[%clk 0:01:25]} 27... Nxf4 {[%clk 0:01:11.6]} 28. Kh2 {[%clk
0:01:17.1]} 28... Nxh3 {[%clk 0:01:07.8]} 29. Qg3 {[%clk 0:01:08.9]} 29... e4
{[%clk 0:01:00.7]} 30. Rxe4 {[%clk 0:01:04.7]} 30... Be5 {[%clk 0:00:58.6]} 31.
Rxe5 {[%clk 0:01:02.7]} 31... Qxe5 {[%clk 0:00:58.7]} 32. Bxe8 {[%clk
0:01:02.5]} 32... Qxe8 {[%clk 0:00:46.8]} 33. Re1 {[%clk 0:00:51.4]} 33... Qd8
{[%clk 0:00:42.5]} 34. Nd5 {[%clk 0:00:51]} 34... f5 {[%clk 0:00:28.5]} 35. Qe5
{[%clk 0:00:48]} 35... Kf7 {[%clk 0:00:18.9]} 36. Qg7# {[%clk 0:00:46.6]} 1-0